[Event "Titled Tuesday Blitz March 28 Early 2023"]
[White "Iljin, Timofey"]
[Black "Orlov, Georgi"]
[WhiteFideId "14110180"]
[BlackFideId "2011271"]
[WhiteElo "2397"]
[BlackElo "2604"]
[Result "1-0"]
[Round "02"]
[TimeControl "180+2"]
[Date "2023.03.28"]
[WhiteClock "0:00:04"]
[BlackClock "0:00:04"]

1. e4 {[%clk 0:03:00]}  c5 {[%clk 0:02:58]} 2. c3 {[%clk 0:03:01]}  Nf6 {[%clk 0:02:57]} 3. e5 {[%clk 0:03:01]}  Nd5 {[%clk 0:02:58]} 4. d4 {[%clk 0:03:02]}  cxd4 {[%clk 0:02:56]} 5. cxd4 {[%clk 0:03:03]}  d6 {[%clk 0:02:53]} 6. Nf3 {[%clk 0:03:03]}  e6 {[%clk 0:02:52]} 7. exd6 {[%clk 0:03:03]}  Bxd6 {[%clk 0:02:51]} 8. Nc3 {[%clk 0:03:03]}  O-O {[%clk 0:02:51]} 9. Bd3 {[%clk 0:03:03]}  Nf6 {[%clk 0:02:47]} 10. O-O {[%clk 0:03:03]}  b6 {[%clk 0:02:48]} 11. Re1 {[%clk 0:03:02]}  Bb7 {[%clk 0:02:48]} 12. a3 {[%clk 0:03:02]}  Nbd7 {[%clk 0:02:44]} 13. Bc2 {[%clk 0:03:02]}  Rc8 {[%clk 0:02:44]} 14. Qd3 {[%clk 0:03:03]}  g6 {[%clk 0:02:39]} 15. Bh6 {[%clk 0:03:01]}  Re8 {[%clk 0:02:39]} 16. Bb3 {[%clk 0:03:00]}  Qc7 {[%clk 0:02:32]} 17. h3 {[%clk 0:02:59]}  a6 {[%clk 0:02:32]} 18. Ng5 {[%clk 0:02:49]}  Bf8 {[%clk 0:02:20]} 19. Bxf8 {[%clk 0:02:40]}  Nxf8 {[%clk 0:02:19]} 20. Rac1 {[%clk 0:02:30]}  Qd8 {[%clk 0:02:16]} 21. Rcd1 {[%clk 0:02:22]}  Nd5 {[%clk 0:02:12]} 22. Nxd5 {[%clk 0:02:20]}  Bxd5 {[%clk 0:02:10]} 23. Bxd5 {[%clk 0:02:12]}  Qxd5 {[%clk 0:02:10]} 24. Ne4 {[%clk 0:02:10]}  Nd7 {[%clk 0:01:49]} 25. Qxa6 {[%clk 0:02:04]}  Rc2 {[%clk 0:01:49]} 26. Qa4 {[%clk 0:01:59]}  Rc6 {[%clk 0:01:36]} 27. Nc3 {[%clk 0:01:50]}  Qc4 {[%clk 0:01:36]} 28. Qxc4 {[%clk 0:01:42]}  Rxc4 {[%clk 0:01:36]} 29. d5 {[%clk 0:01:42]}  e5 {[%clk 0:01:36]} 30. d6 {[%clk 0:01:40]}  f6 {[%clk 0:01:33]} 31. f3 {[%clk 0:01:12]}  Kf7 {[%clk 0:01:32]} 32. Kf2 {[%clk 0:01:08]}  Rd8 {[%clk 0:01:32]} 33. Re4 {[%clk 0:00:52]}  Rc6 {[%clk 0:01:27]} 34. Ra4 {[%clk 0:00:40]}  Ke6 {[%clk 0:01:14]} 35. Nb5 {[%clk 0:00:24]}  Rc2+ {[%clk 0:01:13]} 36. Kg3 {[%clk 0:00:24]}  Rxb2 {[%clk 0:01:13]} 37. Nc7+ {[%clk 0:00:24]}  Kf7 {[%clk 0:01:08]} 38. Ra7 {[%clk 0:00:24]}  f5 {[%clk 0:00:59]} 39. Na6 {[%clk 0:00:20]}  h6 {[%clk 0:00:55]} 40. Nb8 {[%clk 0:00:17]}  Ke6 {[%clk 0:00:54]} 41. Nc6 {[%clk 0:00:13]}  Rc8 {[%clk 0:00:54]} 42. Rc7 {[%clk 0:00:10]}  Rf8 {[%clk 0:00:48]} 43. Ne7 {[%clk 0:00:06]}  g5 {[%clk 0:00:45]} 44. Ng6 {[%clk 0:00:04]}  Rf6 {[%clk 0:00:42]} 45. Ne7 {[%clk 0:00:03]}  Rb3 {[%clk 0:00:35]} 46. Nc6 {[%clk 0:00:03]}  Rf8 {[%clk 0:00:29]} 47. Ne7 {[%clk 0:00:02]}  Ra8 {[%clk 0:00:27]} 48. Ng6 {[%clk 0:00:03]}  Raxa3 {[%clk 0:00:18]} 49. Rxd7 {[%clk 0:00:03]}  Kxd7 {[%clk 0:00:18]} 50. Nxe5+ {[%clk 0:00:03]}  Ke6 {[%clk 0:00:15]} 51. d7 {[%clk 0:00:04]}  f4+ {[%clk 0:00:15]} 52. Kh2 {[%clk 0:00:04]}  Ra8 {[%clk 0:00:13]} 53. Nc6 {[%clk 0:00:04]}  Rb2 {[%clk 0:00:11]} 54. d8=Q {[%clk 0:00:05]}  Rxd8 {[%clk 0:00:10]} 55. Nxd8+ {[%clk 0:00:06]}  Kf5 {[%clk 0:00:10]} 56. Nc6 {[%clk 0:00:05]}  Ke6 {[%clk 0:00:08]} 57. Nd4+ {[%clk 0:00:05]}  Ke5 {[%clk 0:00:07]} 58. Nc6+ {[%clk 0:00:05]}  Ke6 {[%clk 0:00:07]} 59. Re1+ {[%clk 0:00:03]}  Kd6 {[%clk 0:00:07]} 60. Nd4 {[%clk 0:00:03]}  Rb4 {[%clk 0:00:05]} 61. Nf5+ {[%clk 0:00:03]}  Kd5 {[%clk 0:00:05]} 62. Nxh6 {[%clk 0:00:04]}  b5 {[%clk 0:00:06]} 63. Nf7 {[%clk 0:00:04]}  Kd4 {[%clk 0:00:06]} 64. Nxg5 {[%clk 0:00:05]}  Rb2 {[%clk 0:00:05]} 65. Ne4 {[%clk 0:00:05]}  b4 {[%clk 0:00:04]} 66. h4 {[%clk 0:00:06]}  b3 {[%clk 0:00:03]} 67. h5 {[%clk 0:00:06]}  Rc2 {[%clk 0:00:03]} 68. h6 {[%clk 0:00:04]}  Rc6 {[%clk 0:00:03]} 69. Kg1 {[%clk 0:00:02]}  Rxh6 {[%clk 0:00:02]} 70. Rb1 {[%clk 0:00:02]}  Rb6 {[%clk 0:00:02]} 71. Nd2 {[%clk 0:00:02]}  Kc3 {[%clk 0:00:02]} 72. Rxb3+ {[%clk 0:00:03]}  Rxb3 {[%clk 0:00:01]} 73. Nxb3 {[%clk 0:00:03]}  Kxb3 {[%clk 0:00:01]} 74. g3 {[%clk 0:00:04]}  Kc4 {[%clk 0:00:02]} 75. g4 {[%clk 0:00:02]}  Kd5 {[%clk 0:00:03]} 76. Kf2 {[%clk 0:00:03]}  Kd4 {[%clk 0:00:03]} 77. Ke2 {[%clk 0:00:03]}  Kd5 {[%clk 0:00:04]} 78. Kd3 {[%clk 0:00:04]} 1-0


[Site "https://www.chess.com"]

[Event "Titled Tuesday Blitz March 28 Early 2023"]
[White "Khumalo, Keith"]
[Black "Perez Rodriguez, Jennifer"]
[WhiteFideId "14319470"]
[BlackFideId "3507831"]
[WhiteElo "2056"]
[BlackElo "2170"]
[Result "1-0"]
[Round "02"]
[TimeControl "180+2"]
[Date "2023.03.28"]
[WhiteClock "0:02:13"]
[BlackClock "0:00:18"]

1. d4 {[%clk 0:03:00]}  d5 {[%clk 0:02:56]} 2. c4 {[%clk 0:02:59]}  c6 {[%clk 0:02:55]} 3. Nf3 {[%clk 0:03:00]}  Nf6 {[%clk 0:02:55]} 4. Qc2 {[%clk 0:03:00]}  g6 {[%clk 0:02:53]} 5. e3 {[%clk 0:03:00]}  Bf5 {[%clk 0:02:52]} 6. Bd3 {[%clk 0:03:00]}  Bxd3 {[%clk 0:02:51]} 7. Qxd3 {[%clk 0:03:01]}  Bg7 {[%clk 0:02:52]} 8. O-O {[%clk 0:03:02]}  Nbd7 {[%clk 0:02:53]} 9. Nc3 {[%clk 0:03:03]}  O-O {[%clk 0:02:52]} 10. e4 {[%clk 0:03:03]}  dxe4 {[%clk 0:02:52]} 11. Nxe4 {[%clk 0:03:04]}  Nxe4 {[%clk 0:02:52]} 12. Qxe4 {[%clk 0:03:05]}  Nf6 {[%clk 0:02:52]} 13. Qh4 {[%clk 0:03:05]}  Qa5 {[%clk 0:02:53]} 14. Bd2 {[%clk 0:03:05]}  Qf5 {[%clk 0:02:51]} 15. Rfe1 {[%clk 0:03:03]}  Rfe8 {[%clk 0:02:49]} 16. h3 {[%clk 0:03:04]}  Qd3 {[%clk 0:02:47]} 17. b3 {[%clk 0:03:01]}  Rad8 {[%clk 0:02:39]} 18. Re3 {[%clk 0:03:01]}  Qf5 {[%clk 0:02:39]} 19. Bc3 {[%clk 0:02:56]}  h5 {[%clk 0:02:32]} 20. Rae1 {[%clk 0:02:56]}  e6 {[%clk 0:02:06]} 21. R3e2 {[%clk 0:02:39]}  Nd7 {[%clk 0:01:53]} 22. Re3 {[%clk 0:02:32]}  Qf6 {[%clk 0:01:47]} 23. Qe4 {[%clk 0:02:29]}  Qe7 {[%clk 0:01:39]} 24. g4 {[%clk 0:02:25]}  Nf6 {[%clk 0:01:39]} 25. Qf4 {[%clk 0:02:25]}  hxg4 {[%clk 0:01:39]} 26. hxg4 {[%clk 0:02:26]}  Qd7 {[%clk 0:01:39]} 27. Ne5 {[%clk 0:02:26]}  Qe7 {[%clk 0:01:29]} 28. Rf3 {[%clk 0:02:24]}  Rf8 {[%clk 0:01:28]} 29. Kg2 {[%clk 0:02:23]}  Nd7 {[%clk 0:01:27]} 30. Rh1 {[%clk 0:02:24]}  Nxe5 {[%clk 0:01:25]} 31. dxe5 {[%clk 0:02:25]}  Rd7 {[%clk 0:00:58]} 32. Rfh3 {[%clk 0:02:18]}  Rfd8 {[%clk 0:00:52]} 33. Qf6 {[%clk 0:02:14]}  Qxf6 {[%clk 0:00:18]} 34. exf6 {[%clk 0:02:14]}  Rd3 {[%clk 0:00:19]} 35. fxg7 {[%clk 0:02:12]}  Rxh3 {[%clk 0:00:18]} 36. Rxh3 {[%clk 0:02:13]} 1-0


[Site "https://www.chess.com"]

[Event "Titled Tuesday Blitz March 28 Early 2023"]
[White "Silva Lucena, Cristian"]
[Black "Derjabin, Ilja"]
[WhiteFideId "2232588"]
[BlackFideId "14104768"]
[WhiteElo "2223"]
[BlackElo "2309"]
[Result "0-1"]
[Round "02"]
[TimeControl "180+2"]
[Date "2023.03.28"]
[WhiteClock "0:00:13"]
[BlackClock "0:00:42"]

1. d4 {[%clk 0:02:59]}  Nf6 {[%clk 0:02:59]} 2. c4 {[%clk 0:02:58]}  c5 {[%clk 0:02:59]} 3. Nf3 {[%clk 0:02:56]}  cxd4 {[%clk 0:02:59]} 4. Nxd4 {[%clk 0:02:56]}  e5 {[%clk 0:02:59]} 5. Nb5 {[%clk 0:02:53]}  d5 {[%clk 0:02:58]} 6. cxd5 {[%clk 0:02:54]}  Bc5 {[%clk 0:02:58]} 7. N1c3 {[%clk 0:02:54]}  O-O {[%clk 0:02:57]} 8. g3 {[%clk 0:02:53]}  a6 {[%clk 0:02:56]} 9. Na3 {[%clk 0:02:53]}  b5 {[%clk 0:02:56]} 10. Nc2 {[%clk 0:02:47]}  Nbd7 {[%clk 0:02:51]} 11. Bg2 {[%clk 0:02:46]}  Re8 {[%clk 0:02:51]} 12. O-O {[%clk 0:02:46]}  e4 {[%clk 0:02:51]} 13. Be3 {[%clk 0:02:44]}  Bb7 {[%clk 0:02:48]} 14. Bxc5 {[%clk 0:02:34]}  Nxc5 {[%clk 0:02:48]} 15. Qd4 {[%clk 0:02:35]}  Rc8 {[%clk 0:02:45]} 16. Rad1 {[%clk 0:02:33]}  Na4 {[%clk 0:02:19]} 17. Ne3 {[%clk 0:01:48]}  Nxb2 {[%clk 0:02:12]} 18. Rb1 {[%clk 0:01:44]}  Nc4 {[%clk 0:01:59]} 19. Nf5 {[%clk 0:01:42]}  Re5 {[%clk 0:01:46]} 20. Bh3 {[%clk 0:01:36]}  Rc7 {[%clk 0:01:30]} 21. d6 {[%clk 0:01:32]}  Rcc5 {[%clk 0:01:17]} 22. Rfd1 {[%clk 0:01:21]}  Rxf5 {[%clk 0:01:13]} 23. Bxf5 {[%clk 0:01:20]}  Rxf5 {[%clk 0:01:14]} 24. Qa7 {[%clk 0:01:14]}  Qd7 {[%clk 0:01:11]} 25. a4 {[%clk 0:01:09]}  e3 {[%clk 0:01:05]} 26. f3 {[%clk 0:01:02]}  h5 {[%clk 0:01:04]} 27. axb5 {[%clk 0:01:01]}  axb5 {[%clk 0:01:04]} 28. Qb8+ {[%clk 0:00:55]}  Kh7 {[%clk 0:01:04]} 29. Qc7 {[%clk 0:00:50]}  Bc6 {[%clk 0:01:03]} 30. Rd4 {[%clk 0:00:40]}  Rc5 {[%clk 0:00:54]} 31. Qb8 {[%clk 0:00:23]}  Nd2 {[%clk 0:00:46]} 32. Rc1 {[%clk 0:00:23]}  Bxf3 {[%clk 0:00:44]} 33. Qb6 {[%clk 0:00:13]}  Qh3 {[%clk 0:00:42]} 0-1


[Site "https://www.chess.com"]

[Event "Titled Tuesday Blitz March 28 Early 2023"]
[White "Yaniuk, Volodymyr"]
[Black "Corredor Castellanos, Camilo"]
[WhiteFideId "14133083"]
[BlackFideId "4425871"]
[WhiteElo "2141"]
[BlackElo "1994"]
[Result "1-0"]
[Round "02"]
[TimeControl "180+2"]
[Date "2023.03.28"]
[WhiteClock "0:00:18"]
[BlackClock "0:00:38"]

1. d4 {[%clk 0:02:55]}  Nf6 {[%clk 0:02:56]} 2. c4 {[%clk 0:02:55]}  g6 {[%clk 0:02:53]} 3. Nc3 {[%clk 0:02:54]}  Bg7 {[%clk 0:02:54]} 4. e4 {[%clk 0:02:53]}  d6 {[%clk 0:02:54]} 5. Nf3 {[%clk 0:02:54]}  O-O {[%clk 0:02:54]} 6. Be2 {[%clk 0:02:54]}  e5 {[%clk 0:02:53]} 7. O-O {[%clk 0:02:54]}  Nc6 {[%clk 0:02:53]} 8. d5 {[%clk 0:02:54]}  Ne7 {[%clk 0:02:53]} 9. b4 {[%clk 0:02:54]}  Nh5 {[%clk 0:02:47]} 10. g3 {[%clk 0:02:54]}  f5 {[%clk 0:02:43]} 11. Ng5 {[%clk 0:02:54]}  Nf6 {[%clk 0:02:41]} 12. Bf3 {[%clk 0:02:55]}  h6 {[%clk 0:02:40]} 13. Ne6 {[%clk 0:02:54]}  Bxe6 {[%clk 0:02:40]} 14. dxe6 {[%clk 0:02:55]}  f4 {[%clk 0:02:40]} 15. a4 {[%clk 0:02:50]}  g5 {[%clk 0:02:40]} 16. Nd5 {[%clk 0:02:46]}  c6 {[%clk 0:02:36]} 17. Nxf6+ {[%clk 0:02:35]}  Rxf6 {[%clk 0:02:32]} 18. Bg4 {[%clk 0:02:34]}  h5 {[%clk 0:02:19]} 19. Bxh5 {[%clk 0:02:34]}  Rxe6 {[%clk 0:02:19]} 20. Bg4 {[%clk 0:02:34]}  Rh6 {[%clk 0:02:18]} 21. b5 {[%clk 0:02:25]}  Qf8 {[%clk 0:02:06]} 22. Ba3 {[%clk 0:02:21]}  Qf6 {[%clk 0:02:05]} 23. h3 {[%clk 0:02:14]}  Rd8 {[%clk 0:01:54]} 24. Kg2 {[%clk 0:02:08]}  d5 {[%clk 0:01:49]} 25. bxc6 {[%clk 0:01:59]}  bxc6 {[%clk 0:01:46]} 26. Rb1 {[%clk 0:01:45]}  Ng6 {[%clk 0:01:38]} 27. cxd5 {[%clk 0:01:42]}  cxd5 {[%clk 0:01:36]} 28. Rb7 {[%clk 0:01:37]}  dxe4 {[%clk 0:01:35]} 29. Qb3+ {[%clk 0:01:29]}  Kh7 {[%clk 0:01:11]} 30. Rf7 {[%clk 0:01:11]}  Qc6 {[%clk 0:01:07]} 31. Qb7 {[%clk 0:01:00]}  Qxb7 {[%clk 0:00:59]} 32. Rxb7 {[%clk 0:01:01]}  Rd3 {[%clk 0:00:57]} 33. Bc5 {[%clk 0:00:55]}  Rc3 {[%clk 0:00:54]} 34. Bxa7 {[%clk 0:00:53]}  e3 {[%clk 0:00:54]} 35. fxe3 {[%clk 0:00:50]}  Rc2+ {[%clk 0:00:49]} 36. Kf3 {[%clk 0:00:48]}  fxg3 {[%clk 0:00:47]} 37. Kxg3 {[%clk 0:00:45]}  Nh4 {[%clk 0:00:45]} 38. Bf5+ {[%clk 0:00:24]}  Nxf5+ {[%clk 0:00:44]} 39. Rxf5 {[%clk 0:00:25]}  Kg6 {[%clk 0:00:45]} 40. Rff7 {[%clk 0:00:22]}  Bh8 {[%clk 0:00:42]} 41. Rfc7 {[%clk 0:00:20]}  e4 {[%clk 0:00:43]} 42. Rxc2 {[%clk 0:00:20]}  Be5+ {[%clk 0:00:42]} 43. Kg2 {[%clk 0:00:20]}  Kh5 {[%clk 0:00:41]} 44. Rc5 {[%clk 0:00:19]}  Re6 {[%clk 0:00:40]} 45. Rbb5 {[%clk 0:00:18]}  Bf6 {[%clk 0:00:40]} 46. Rb6 {[%clk 0:00:17]}  Rxb6 {[%clk 0:00:38]} 47. Bxb6 {[%clk 0:00:18]} 1-0


[Site "https://www.chess.com"]

[Event "Titled Tuesday Blitz March 28 Early 2023"]
[White "Melian, Juan Sebastian"]
[Black "Krzywda, Andrzej"]
[WhiteFideId "3706575"]
[BlackFideId "1114565"]
[WhiteElo "2031"]
[BlackElo "2155"]
[Result "1-0"]
[Round "02"]
[TimeControl "180+2"]
[Date "2023.03.28"]
[WhiteClock "0:01:43"]
[BlackClock "0:00:02"]

1. e4 {[%clk 0:03:00]}  e6 {[%clk 0:02:54]} 2. d4 {[%clk 0:02:59]}  d5 {[%clk 0:02:54]} 3. Bd3 {[%clk 0:03:00]}  dxe4 {[%clk 0:02:50]} 4. Bxe4 {[%clk 0:03:01]}  Nf6 {[%clk 0:02:49]} 5. Bf3 {[%clk 0:03:00]}  c5 {[%clk 0:02:49]} 6. Ne2 {[%clk 0:03:01]}  Nc6 {[%clk 0:02:50]} 7. Be3 {[%clk 0:03:01]}  e5 {[%clk 0:02:33]} 8. Bxc6+ {[%clk 0:02:57]}  bxc6 {[%clk 0:02:33]} 9. dxe5 {[%clk 0:02:58]}  Qxd1+ {[%clk 0:02:31]} 10. Kxd1 {[%clk 0:02:58]}  Ng4 {[%clk 0:02:32]} 11. Nd2 {[%clk 0:02:56]}  Be7 {[%clk 0:02:29]} 12. Ke1 {[%clk 0:02:44]}  Nxe3 {[%clk 0:02:22]} 13. fxe3 {[%clk 0:02:45]}  O-O {[%clk 0:02:13]} 14. Nf3 {[%clk 0:02:27]}  Re8 {[%clk 0:02:04]} 15. Kf2 {[%clk 0:02:22]}  f6 {[%clk 0:01:40]} 16. exf6 {[%clk 0:02:22]}  Bxf6 {[%clk 0:01:40]} 17. c3 {[%clk 0:02:22]}  Rb8 {[%clk 0:01:29]} 18. b3 {[%clk 0:02:19]}  Ba6 {[%clk 0:00:55]} 19. Rac1 {[%clk 0:02:09]}  Rbd8 {[%clk 0:00:52]} 20. Rhd1 {[%clk 0:02:02]}  Rxd1 {[%clk 0:00:40]} 21. Rxd1 {[%clk 0:02:03]}  Bxe2 {[%clk 0:00:40]} 22. Kxe2 {[%clk 0:02:04]}  Bxc3 {[%clk 0:00:41]} 23. Rd6 {[%clk 0:02:03]}  Rc8 {[%clk 0:00:37]} 24. Kd3 {[%clk 0:02:00]}  Bf6 {[%clk 0:00:35]} 25. Rd7 {[%clk 0:01:52]}  a5 {[%clk 0:00:28]} 26. e4 {[%clk 0:01:45]}  a4 {[%clk 0:00:25]} 27. e5 {[%clk 0:01:45]}  Bd8 {[%clk 0:00:18]} 28. Kc4 {[%clk 0:01:45]}  axb3 {[%clk 0:00:12]} 29. axb3 {[%clk 0:01:46]}  Ra8 {[%clk 0:00:09]} 30. Kxc5 {[%clk 0:01:45]}  Kf8 {[%clk 0:00:08]} 31. e6 {[%clk 0:01:45]}  Be7+ {[%clk 0:00:08]} 32. Kxc6 {[%clk 0:01:46]}  Rc8+ {[%clk 0:00:04]} 33. Rc7 {[%clk 0:01:45]}  Rb8 {[%clk 0:00:04]} 34. Nd4 {[%clk 0:01:43]}  Rb4 {[%clk 0:00:03]} 35. Rc8+ {[%clk 0:01:43]}  Bd8 {[%clk 0:00:03]} 36. Rxd8+ {[%clk 0:01:44]}  Ke7 {[%clk 0:00:04]} 37. Rd7+ {[%clk 0:01:43]}  Ke8 {[%clk 0:00:03]} 38. Nf5 {[%clk 0:01:41]}  Rxb3 {[%clk 0:00:02]} 39. Nd6+ {[%clk 0:01:42]}  Kf8 {[%clk 0:00:02]} 40. e7+ {[%clk 0:01:43]}  Kg8 {[%clk 0:00:02]} 41. e8=Q# {[%clk 0:01:43]} 1-0


[Site "https://www.chess.com"]

[Event "Titled Tuesday Blitz March 28 Early 2023"]
[White "Chan, Kim Yew"]
[Black "Jeet, Jain"]
[WhiteFideId "5717981"]
[BlackFideId "5073022"]
[WhiteElo "2206"]
[BlackElo "2067"]
[Result "0-1"]
[Round "02"]
[TimeControl "180+2"]
[Date "2023.03.28"]
[WhiteClock "0:00:12"]
[BlackClock "0:01:47"]

1. Nf3 {[%clk 0:02:47]}  Nf6 {[%clk 0:02:57]} 2. c4 {[%clk 0:02:47]}  b6 {[%clk 0:02:58]} 3. g3 {[%clk 0:02:47]}  Bb7 {[%clk 0:02:58]} 4. Bg2 {[%clk 0:02:48]}  g6 {[%clk 0:02:58]} 5. O-O {[%clk 0:02:36]}  Bg7 {[%clk 0:02:59]} 6. d4 {[%clk 0:02:36]}  O-O {[%clk 0:02:57]} 7. d5 {[%clk 0:02:36]}  e6 {[%clk 0:02:56]} 8. Nc3 {[%clk 0:02:33]}  exd5 {[%clk 0:02:48]} 9. cxd5 {[%clk 0:02:34]}  Re8 {[%clk 0:02:47]} 10. Re1 {[%clk 0:02:20]}  a6 {[%clk 0:02:46]} 11. e4 {[%clk 0:02:20]}  d6 {[%clk 0:02:46]} 12. Bf4 {[%clk 0:02:04]}  Nbd7 {[%clk 0:02:45]} 13. Qc2 {[%clk 0:02:03]}  b5 {[%clk 0:02:44]} 14. Rac1 {[%clk 0:01:54]}  Nb6 {[%clk 0:02:41]} 15. b3 {[%clk 0:01:32]}  Rc8 {[%clk 0:02:32]} 16. Nd4 {[%clk 0:01:32]}  Nfxd5 {[%clk 0:02:23]} 17. Nxd5 {[%clk 0:00:57]}  Bxd4 {[%clk 0:02:22]} 18. Bh3 {[%clk 0:00:40]}  Nxd5 {[%clk 0:02:04]} 19. Bxc8 {[%clk 0:00:36]}  Qxc8 {[%clk 0:01:47]} 20. exd5 {[%clk 0:00:36]}  Rxe1+ {[%clk 0:01:47]} 21. Rxe1 {[%clk 0:00:37]}  Bxd5 {[%clk 0:01:48]} 22. Rd1 {[%clk 0:00:35]}  Qh3 {[%clk 0:01:47]} 23. Rxd4 {[%clk 0:00:12]}  Qg2# {[%clk 0:01:47]} 0-1


[Site "https://www.chess.com"]

[Event "Titled Tuesday Blitz March 28 Early 2023"]
[White "Toropov, Pavel"]
[Black "Shkuran, Danylo"]
[WhiteFideId "24129178"]
[BlackFideId "14106248"]
[WhiteElo "2182"]
[BlackElo "2427"]
[Result "1-0"]
[Round "02"]
[TimeControl "180+2"]
[Date "2023.03.28"]
[WhiteClock "0:00:20"]
[BlackClock "0:00:03"]

1. e4 {[%clk 0:03:00]}  e6 {[%clk 0:02:59]} 2. Nf3 {[%clk 0:03:00]}  d5 {[%clk 0:03:00]} 3. Nc3 {[%clk 0:03:00]}  c5 {[%clk 0:02:58]} 4. exd5 {[%clk 0:02:58]}  exd5 {[%clk 0:02:58]} 5. d4 {[%clk 0:02:58]}  c4 {[%clk 0:02:56]} 6. Be2 {[%clk 0:02:48]}  Nf6 {[%clk 0:02:51]} 7. O-O {[%clk 0:02:48]}  Bd6 {[%clk 0:02:50]} 8. Bg5 {[%clk 0:02:47]}  Be6 {[%clk 0:02:46]} 9. h3 {[%clk 0:02:46]}  h6 {[%clk 0:02:45]} 10. Bh4 {[%clk 0:02:44]}  Nbd7 {[%clk 0:02:41]} 11. Qd2 {[%clk 0:02:29]}  a6 {[%clk 0:02:40]} 12. Rae1 {[%clk 0:02:29]}  Qc7 {[%clk 0:02:28]} 13. Bxf6 {[%clk 0:02:25]}  gxf6 {[%clk 0:02:23]} 14. Nxd5 {[%clk 0:01:37]}  Bxd5 {[%clk 0:02:12]} 15. Bxc4+ {[%clk 0:01:37]}  Be6 {[%clk 0:02:12]} 16. d5 {[%clk 0:01:35]}  Qxc4 {[%clk 0:01:42]} 17. dxe6 {[%clk 0:01:35]}  fxe6 {[%clk 0:01:17]} 18. Qxd6 {[%clk 0:01:30]}  O-O-O {[%clk 0:01:17]} 19. Qxe6 {[%clk 0:01:23]}  Qc5 {[%clk 0:01:09]} 20. Re3 {[%clk 0:01:13]}  Kb8 {[%clk 0:01:07]} 21. Rc3 {[%clk 0:01:08]}  Qb6 {[%clk 0:00:42]} 22. Qxb6 {[%clk 0:01:04]}  Nxb6 {[%clk 0:00:43]} 23. Re1 {[%clk 0:01:04]}  Rd6 {[%clk 0:00:42]} 24. b3 {[%clk 0:01:00]}  Rg8 {[%clk 0:00:38]} 25. Rce3 {[%clk 0:00:59]}  Ka7 {[%clk 0:00:37]} 26. c4 {[%clk 0:00:58]}  Nd7 {[%clk 0:00:31]} 27. Re6 {[%clk 0:00:56]}  Rd3 {[%clk 0:00:27]} 28. Kf1 {[%clk 0:00:55]}  h5 {[%clk 0:00:21]} 29. R6e3 {[%clk 0:00:53]}  Rd6 {[%clk 0:00:21]} 30. R3e2 {[%clk 0:00:47]}  Nc5 {[%clk 0:00:20]} 31. Rd2 {[%clk 0:00:46]}  Rb6 {[%clk 0:00:15]} 32. Rd5 {[%clk 0:00:45]}  Ne6 {[%clk 0:00:11]} 33. g3 {[%clk 0:00:41]}  h4 {[%clk 0:00:04]} 34. Nxh4 {[%clk 0:00:39]}  Ng5 {[%clk 0:00:04]} 35. Kg2 {[%clk 0:00:34]}  Rc6 {[%clk 0:00:04]} 36. Nf5 {[%clk 0:00:30]}  Ne6 {[%clk 0:00:04]} 37. Kh2 {[%clk 0:00:28]}  Rh8 {[%clk 0:00:01]} 38. Ne7 {[%clk 0:00:25]}  Rb6 {[%clk 0:00:02]} 39. Kg2 {[%clk 0:00:23]}  Ng5 {[%clk 0:00:02]} 40. h4 {[%clk 0:00:22]}  Nf7 {[%clk 0:00:02]} 41. f4 {[%clk 0:00:20]}  Nd6 {[%clk 0:00:02]} 42. Kf3 {[%clk 0:00:19]}  Rh7 {[%clk 0:00:02]} 43. Re6 {[%clk 0:00:20]}  Nc8 {[%clk 0:00:01]} 44. Nxc8+ {[%clk 0:00:19]}  Kb8 {[%clk 0:00:01]} 45. Nxb6 {[%clk 0:00:20]}  Ka7 {[%clk 0:00:02]} 46. Rd8 {[%clk 0:00:20]}  f5 {[%clk 0:00:03]} 47. Ra8# {[%clk 0:00:20]} 1-0


[Site "https://www.chess.com"]

[Event "Titled Tuesday Blitz March 28 Early 2023"]
[White "Koellner, Ruben Gideon"]
[Black "Silvestre, Christian"]
[WhiteFideId "12993093"]
[BlackFideId "30956269"]
[WhiteElo "2303"]
[BlackElo "2371"]
[Result "1-0"]
[Round "02"]
[TimeControl "180+2"]
[Date "2023.03.28"]
[WhiteClock "0:01:51"]
[BlackClock "0:02:12"]

1. d4 {[%clk 0:03:00]}  Nf6 {[%clk 0:02:59]} 2. Nf3 {[%clk 0:03:01]}  g6 {[%clk 0:02:59]} 3. Nbd2 {[%clk 0:03:02]}  Bg7 {[%clk 0:02:59]} 4. e4 {[%clk 0:03:03]}  O-O {[%clk 0:02:59]} 5. Bc4 {[%clk 0:03:03]}  e6 {[%clk 0:02:59]} 6. Bd3 {[%clk 0:03:01]}  d5 {[%clk 0:02:58]} 7. e5 {[%clk 0:03:02]}  Nfd7 {[%clk 0:02:58]} 8. c3 {[%clk 0:03:02]}  c5 {[%clk 0:02:59]} 9. h4 {[%clk 0:03:03]}  h5 {[%clk 0:02:58]} 10. Nf1 {[%clk 0:03:02]}  b6 {[%clk 0:02:57]} 11. Bg5 {[%clk 0:03:00]}  Qc7 {[%clk 0:02:57]} 12. Ne3 {[%clk 0:03:01]}  Ba6 {[%clk 0:02:57]} 13. g4 {[%clk 0:02:58]}  cxd4 {[%clk 0:02:54]} 14. cxd4 {[%clk 0:02:58]}  hxg4 {[%clk 0:02:47]} 15. Nxg4 {[%clk 0:02:57]}  Bxd3 {[%clk 0:02:46]} 16. Qxd3 {[%clk 0:02:58]}  Nc6 {[%clk 0:02:46]} 17. Rc1 {[%clk 0:02:56]}  Qb7 {[%clk 0:02:28]} 18. h5 {[%clk 0:02:56]}  Nb4 {[%clk 0:02:25]} 19. Qd2 {[%clk 0:02:55]}  Nxa2 {[%clk 0:02:25]} 20. Ra1 {[%clk 0:02:53]}  Qa6 {[%clk 0:02:24]} 21. h6 {[%clk 0:02:46]}  f6 {[%clk 0:02:21]} 22. hxg7 {[%clk 0:02:46]}  fxg5 {[%clk 0:02:19]} 23. gxf8=Q+ {[%clk 0:02:44]}  Rxf8 {[%clk 0:02:20]} 24. Qxg5 {[%clk 0:02:27]}  Qd3 {[%clk 0:02:18]} 25. Nf6+ {[%clk 0:02:09]}  Nxf6 {[%clk 0:02:17]} 26. exf6 {[%clk 0:02:10]}  Nb4 {[%clk 0:02:14]} 27. Rh8+ {[%clk 0:02:00]}  Kf7 {[%clk 0:02:12]} 28. Ne5+ {[%clk 0:01:51]} 1-0


[Site "https://www.chess.com"]